bitfinex/quotes_ETHUSD_20250508
["timestamp","ask_amount","ask_price","bid_price","bid_amount"]
[1746670888231,5.45813505,1832.2,1831.9,1.73173066]
[1746670888736,5.45813505,1832.2,1831.9,7.19052413]
[1746670888902,5.45780597,1832.3,1831.9,7.19052413]
[1746670889097,10.91568262,1832.3,1831.9,7.19052413]
[1746670889430,5.45794432,1832.2,1831.9,1.73173066]
[1746670889799,10.32140258,1832.6,1831.9,1.73173066]
[1746670889999,5.4583129,1832.1,1831.9,0.8053]
[1746670890609,5.458113,1832.2,1831.9,0.8053]
[1746670891532,5.458113,1832.2,1832.0,0.21115448]
[1746670891701,5.45821734,1832.1,1832.0,0.21115448]
[1746670892028,5.45809446,1832.2,1832.0,0.21115448]
[1746670893030,5.4577836,1832.3,1832.0,0.21115448]
[1746670893427,5.45816059,1832.2,1832.0,0.21115448]
[1746670893631,5.45791944,1832.2,1832.0,0.21115448]
[1746670893833,5.45821734,1832.1,1832.0,0.21115448]
[1746670895003,5.45793946,1832.2,1832.0,0.21115448]
[1746670895630,11.85639198,1832.3,1832.0,0.21115448]
[1746670895935,17.31427609,1832.3,1832.0,0.21115448]
[1746670896438,10.12,1832.5,1832.3,6.24922363]
[1746670896640,15.789,1832.8,1832.5,5.4568816]
[1746670896798,15.789,1832.8,1832.6,0.7917]
[1746670897232,15.789,1832.8,1832.7,0.21098017]
[1746670897438,5.669,1832.8,1832.7,0.21098017]
[1746670897603,5.669,1832.8,1832.6,0.7917]
[1746670898139,5.669,1832.8,1832.7,0.21098017]
[1746670898339,5.669,1832.8,1832.6,0.7917]
[1746670898541,5.669,1832.8,1832.7,0.21098017]
[1746670898838,5.669,1832.8,1832.6,6.87314573]
[1746670899035,5.669,1832.8,1832.6,1.41655464]
[1746670899245,5.669,1832.8,1832.7,0.20645025]
[1746670899942,5.669,1832.8,1832.6,6.87326819]
[1746670900150,5.669,1832.8,1832.7,0.20645025]
[1746670900446,5.669,1832.8,1832.6,0.7917]
[1746670900642,11.12516025,1832.8,1832.7,0.20645025]
[1746670900846,5.669,1832.8,1832.7,0.20645025]
[1746670901048,5.669,1832.8,1832.6,0.7917]
[1746670901254,5.669,1832.8,1832.7,0.20645025]
[1746670901652,5.669,1832.8,1832.6,0.7917]
[1746670901826,5.669,1832.8,1832.7,0.20645025]
[1746670902148,11.12514993,1832.8,1832.6,0.7917]
[1746670902453,11.12514993,1832.8,1832.7,0.20645025]
[1746670902754,11.12514993,1832.8,1832.6,0.7917]
[1746670902910,5.669,1832.8,1832.7,0.20645025]
[1746670903115,4.709,1832.8,1832.6,6.24836318]
[1746670903327,4.709,1832.8,1832.7,0.20645025]
[1746670903523,10.16513269,1832.8,1832.6,0.7917]
[1746670903748,4.709,1832.8,1832.7,0.20645025]
[1746670903955,4.709,1832.8,1832.6,0.7917]
[1746670904243,4.709,1832.8,1832.7,0.20645025]
[1746670904640,4.709,1832.8,1832.6,0.7917]
[1746670904949,4.709,1832.8,1832.7,0.20645025]
[1746670905132,4.709,1832.8,1832.6,0.7917]
[1746670905306,4.709,1832.8,1832.7,0.20645025]
[1746670905510,4.709,1832.8,1832.6,0.7917]
[1746670905750,4.709,1832.8,1832.7,0.20645025]
[1746670905916,4.709,1832.8,1832.6,6.24830114]
[1746670906115,4.709,1832.8,1832.7,0.83128036]
[1746670906835,15.5755395,1833.0,1832.7,0.83128036]
[1746670907236,15.5755395,1833.0,1832.7,0.20645025]
[1746670907544,15.5755395,1833.0,1832.6,6.24822584]
[1746670907769,15.5755395,1833.0,1832.7,0.20645025]
[1746670907918,15.5755395,1833.0,1832.6,11.70474246]
[1746670908117,15.5755395,1833.0,1832.6,6.24821662]
[1746670908359,5.636,1833.1,1832.6,6.24821662]
[1746670908360,5.636,1833.1,1832.7,0.20645025]
[1746670908533,5.45553857,1833.0,1832.6,7.41872863]
[1746670908856,5.45553857,1833.0,1832.7,0.20645025]
[1746670909243,5.45553857,1833.0,1832.6,7.41872088]
[1746670909441,5.45553857,1833.0,1832.8,0.20043959]
[1746670909830,5.45553857,1833.0,1832.6,7.41872088]
[1746670910354,5.45553857,1833.0,1832.7,0.20043959]
[1746670910550,11.09141666,1833.1,1832.7,5.45642088]
[1746670910849,5.45554409,1833.0,1832.8,0.20043959]
[1746670911170,5.45554409,1833.0,1832.6,12.87531496]
[1746670911347,11.09145334,1833.1,1832.7,6.94438512]
[1746670911651,5.45554527,1833.0,1832.7,1.48797109]
[1746670912466,5.636,1833.1,1832.7,1.48797109]
[1746670912635,5.636,1833.1,1832.8,0.7619]
[1746670912842,11.09124527,1833.1,1832.8,0.7619]
[1746670913141,11.09124527,1833.1,1832.9,0.20043959]
[1746670913341,11.09124527,1833.1,1832.8,0.7619]
[1746670913524,11.09124527,1833.1,1832.9,0.20043959]
[1746670914082,11.09124527,1833.1,1832.8,0.7619]
[1746670914247,0.96669491,1833.8,1833.0,0.75043959]
[1746670914554,5.45248628,1834.1,1833.7,0.8333]
[1746670914755,1.16770761,1834.2,1833.8,0.19887214]
[1746670914928,5.4525964,1834.0,1833.8,0.19887214]
[1746670915131,5.45244745,1834.1,1833.8,0.19887214]
[1746670915330,6.21055076,1834.2,1833.8,0.19887214]
[1746670915564,11.08841941,1834.1,1833.8,0.19887214]
[1746670916060,5.45286002,1833.9,1833.8,0.19887214]
[1746670916426,5.45269287,1834.0,1833.5,6.25083607]
[1746670916623,5.45269287,1834.0,1833.8,0.19173544]
[1746670916624,5.45286002,1833.9,1833.8,0.19173544]
[1746670917138,5.45286002,1833.9,1833.5,0.7968]
[1746670917333,5.45286002,1833.9,1833.6,0.19173544]
[1746670917655,10.90601074,1833.9,1833.6,0.19173544]
[1746670917859,11.08781861,1834.0,1833.6,0.19173544]
[1746670918067,5.45319918,1833.8,1833.6,0.19173544]
[1746670918637,5.45303645,1833.9,1833.6,0.19173544]
[1746670919975,5.45345476,1833.7,1833.6,0.19173544]
[1746670920137,5.45345476,1833.7,1833.3,0.7929]
[1746670920462,5.45363281,1833.7,1833.4,0.19173544]
[1746670920646,5.4533391,1833.8,1833.4,0.19173544]
[1746670920864,16.37624742,1833.9,1833.4,6.2897431]
[1746670921063,10.12,1833.9,1833.6,5.45374497]
[1746670921764,10.12,1833.9,1833.7,0.18564227]
[1746670921929,10.12,1833.9,1833.8,0.8331]
[1746670922472,10.12,1833.9,1833.8,1.01874227]
[1746670923661,15.57286002,1833.9,1833.8,0.18564227]
[1746670923861,18.08254331,1833.9,1833.8,0.18564227]
[1746670924075,18.08254331,1833.9,1833.6,0.815]
[1746670924280,15.57286002,1833.9,1833.8,0.18564227]
[1746670924467,15.57286002,1833.9,1833.6,0.815]
[1746670924654,15.57286002,1833.9,1833.8,0.18564227]
[1746670924985,10.12,1833.9,1833.8,0.18564227]
[1746670925208,4.23142992,1833.9,1833.4,0.05453582]
[1746670925493,7.86148448,1833.9,1833.8,0.16840334]
[1746670925647,5.45333753,1833.8,1833.3,6.28233124]
[1746670925849,5.45361373,1833.7,1833.3,6.28233124]
[1746670926195,5.45375425,1833.6,1833.4,0.16849025]
[1746670926555,5.45324491,1833.8,1833.4,0.16849025]
[1746670926755,6.28611388,1833.9,1833.4,0.8135778]
[1746670927064,5.45338991,1833.8,1833.4,0.8135778]
[1746670927270,5.45338991,1833.8,1833.4,6.26780438]
[1746670927891,5.45338991,1833.8,1833.5,0.8067]
[1746670928076,5.45301558,1833.9,1833.5,0.8067]
[1746670928278,5.45301558,1833.9,1833.5,6.26074423]
[1746670928476,5.635,1834.0,1833.7,0.8067]
[1746670928797,11.08769027,1834.0,1833.7,0.8067]
[1746670928964,5.635,1834.0,1833.8,0.16849025]
[1746670929149,11.08777021,1834.0,1833.7,0.8067]
[1746670929489,5.635,1834.0,1833.9,0.16849025]
[1746670929656,11.08757761,1834.0,1833.7,0.8067]
[1746670929855,11.08757761,1834.0,1833.9,0.16849025]
[1746670930064,11.08757761,1834.0,1833.7,0.8067]
[1746670930294,10.9152,1834.3,1833.9,0.16849025]
[1746670930476,5.45202772,1834.2,1833.8,5.45292255]
[1746670930682,5.45226541,1834.1,1834.0,0.16805572]
[1746670930994,5.45215752,1834.2,1834.0,0.16805572]
[1746670931157,5.45215752,1834.2,1833.7,6.88595804]
[1746670931358,5.45215752,1834.2,1834.1,0.16805572]
[1746670931570,5.45215752,1834.2,1833.8,0.6885958]
[1746670931788,5.45286002,1833.9,1833.7,1.43273146]
[1746670932059,5.4533058,1833.8,1833.4,6.2609991]
[1746670932406,5.45359224,1833.7,1833.4,0.8067]
[1746670932700,5.4533058,1833.8,1833.4,0.8067]
[1746670932701,11.8809077,1834.0,1833.4,6.2608999]
[1746670932898,5.45287428,1833.9,1833.5,6.08003792]
[1746670933305,5.45287428,1833.9,1833.5,0.62608999]
[1746670933471,5.45320321,1833.8,1833.5,0.62608999]
[1746670933671,5.45337205,1833.8,1833.4,6.26101791]
[1746670934295,5.45340152,1833.8,1833.4,0.8067]
[1746670934585,5.45340152,1833.8,1833.4,6.26100628]
[1746670934856,5.45340152,1833.8,1833.4,6.26081522]
[1746670935307,5.45301039,1833.9,1833.5,5.45399499]
[1746670935491,11.08570559,1834.0,1833.5,6.07995569]
[1746670935690,5.45270559,1834.0,1833.6,6.27376735]
[1746670936392,5.45270559,1834.0,1833.6,0.8202]
[1746670936598,5.45334045,1833.8,1833.7,0.14932324]
[1746670938602,5.45334045,1833.8,1833.4,6.24689644]
[1746670938805,5.45307659,1833.9,1833.5,6.22805004]
[1746670938994,10.90621601,1833.9,1833.5,6.22805004]
[1746670939190,5.45307659,1833.9,1833.6,0.7926]
[1746670939399,10.90619118,1833.9,1833.6,0.7926]
[1746670939576,5.45307659,1833.9,1833.7,0.14932324]
[1746670941302,5.67,1834.1,1833.7,0.14932324]
[1746670941612,5.45315737,1833.8,1833.7,0.14932324]
[1746670942902,5.45306045,1833.9,1833.7,0.14932324]
[1746670943268,6.21466045,1833.9,1833.7,0.14932324]
[1746670943510,10.90658824,1833.8,1833.5,0.62468964]
[1746670943715,10.90658824,1833.8,1833.6,0.14932324]
[1746670943885,10.90658824,1833.8,1833.4,0.8309]
[1746670944214,10.90658824,1833.8,1833.5,0.14932324]
[1746670944373,5.45350557,1833.7,1833.5,0.14932324]
[1746670944971,5.45375218,1833.6,1833.5,0.14932324]
[1746670945372,7.31557795,1833.6,1833.5,0.14932324]
[1746670945573,5.45439976,1833.4,1833.2,0.762]
[1746670945773,5.45439976,1833.4,1833.3,0.14045253]
[1746670946502,5.45405319,1833.5,1833.3,0.14045253]
[1746670948620,5.45434711,1833.4,1833.3,0.14045253]
[1746670948801,5.45434711,1833.4,1832.9,3.0]
[1746670948802,11.21084003,1833.4,1832.9,0.8085]
[1746670949113,5.45483192,1833.3,1833.0,0.142882]
[1746670949500,5.45494483,1833.2,1833.0,0.142882]
[1746670949699,5.45483192,1833.3,1833.0,0.142882]
[1746670949899,5.45495093,1833.2,1833.0,0.142882]
[1746670950415,5.45495796,1833.2,1833.0,0.142882]
[1746670951117,5.45523975,1833.1,1833.0,0.142882]
[1746670952609,5.45571059,1833.0,1832.7,0.8319]
[1746670952914,5.45573777,1833.0,1832.8,0.14557262]
[1746670953317,5.45540901,1833.1,1832.8,0.14557262]
[1746670953615,5.45525532,1833.1,1832.8,5.60167684]
[1746670953797,5.45525532,1833.1,1832.8,0.14557262]
[1746670954420,5.45525532,1833.1,1832.8,5.60170466]
[1746670954721,5.45529352,1833.1,1832.8,0.85181814]
[1746670955087,6.4202,1833.3,1832.9,0.7544]
[1746670955088,5.67,1833.3,1832.9,0.7544]
[1746670955288,5.45496775,1833.2,1832.9,0.7544]
[1746670955481,5.45496775,1833.2,1833.0,0.14557262]
[1746670955687,5.67,1833.3,1833.0,0.14557262]
[1746670955927,5.67,1833.3,1833.0,5.60081295]
[1746670956225,5.45427142,1833.5,1833.1,6.76970907]
[1746670956382,5.45427142,1833.5,1833.2,0.15138732]
[1746670956730,5.45388835,1833.6,1833.2,5.60623938]
[1746670957232,16.552,1833.7,1833.2,5.60623938]
[1746670957386,5.45391949,1833.6,1833.2,5.60623938]
[1746670957587,10.9079102,1833.6,1833.3,0.56062394]
[1746670957787,10.90796123,1833.6,1833.3,0.56062394]
[1746670958020,5.45391949,1833.6,1833.4,0.15138732]
[1746670958321,5.45404963,1833.5,1833.4,0.15138732]
[1746670958686,5.45404963,1833.5,1833.1,6.76958996]
[1746670959008,5.45389894,1833.6,1833.2,6.2831477]
[1746670959416,5.45389894,1833.6,1833.2,6.28323537]
[1746670959915,5.45406098,1833.5,1833.2,0.82834632]
[1746670960083,16.552,1833.7,1833.2,0.82834632]
[1746670960290,5.45464462,1833.3,1833.2,0.15138732]
[1746670961120,5.45515436,1833.2,1832.8,6.99276102]
[1746670961316,5.4553481,1833.1,1832.8,1.53664552]
[1746670963296,5.45508362,1833.2,1832.8,1.53664552]
[1746670963625,5.45485729,1833.3,1832.8,1.53664552]
[1746670963626,5.45483875,1833.3,1833.0,0.7776]
[1746670963826,5.45483875,1833.3,1833.0,1.40093153]
[1746670964227,5.45505824,1833.2,1832.8,1.48384552]
[1746670964425,5.45551613,1833.1,1832.8,1.48384552]
[1746670964611,5.45573708,1833.0,1832.6,0.7884]
[1746670964790,5.45588772,1832.9,1832.6,0.7884]
[1746670965192,5.45573549,1833.0,1832.6,6.2451025]
[1746670965395,5.45573549,1833.0,1832.6,6.24492219]
[1746670965718,5.45548541,1833.1,1832.7,5.45642551]
[1746670966026,5.45548541,1833.1,1832.8,0.776]
[1746670966328,5.45548541,1833.1,1832.9,0.13916119]
[1746670966526,5.45548541,1833.1,1832.8,0.776]
[1746670966734,5.45568457,1833.0,1832.9,0.13916119]
[1746670966928,5.45568457,1833.0,1832.8,0.776]
[1746670967132,5.45583501,1832.9,1832.7,0.8061]
[1746670967506,5.45568457,1833.0,1832.7,0.8061]
[1746670967866,5.86885536,1833.1,1832.7,1.43238194]
[1746670967993,5.45566368,1833.0,1832.7,1.43238194]
[1746670968197,5.45566368,1833.0,1832.7,0.8061]
[1746670968436,5.45564779,1833.0,1832.7,0.8061]
[1746670971237,10.91146623,1833.0,1832.7,0.8061]
[1746670971427,5.45586332,1832.9,1832.7,0.8061]
[1746670973340,5.45613269,1832.8,1832.7,0.8061]
[1746670973541,5.45586332,1832.9,1832.7,0.8061]
[1746670974042,5.45566402,1833.0,1832.7,0.8061]
[1746670974542,5.45566402,1833.0,1832.7,1.43238218]
[1746670974737,10.91147255,1833.0,1832.7,1.43238218]
[1746670975040,5.45598904,1832.9,1832.7,0.8061]
[1746670975641,5.45598904,1832.9,1832.6,0.774]
[1746670976241,5.45566402,1833.0,1832.6,6.23061152]
[1746670976411,5.45583555,1832.9,1832.6,0.774]
[1746670976609,5.45583555,1832.9,1832.6,1.39708173]
[1746670976814,5.45544992,1833.1,1832.7,5.45642061]
[1746670977015,5.45544992,1833.1,1832.6,3.2324562]
[1746670977233,5.45544992,1833.1,1832.7,5.45632599]
[1746670977537,10.91093539,1833.1,1832.7,5.45632599]
[1746670977743,5.45554324,1833.0,1832.7,6.87085715]
[1746670977937,5.45554324,1833.0,1832.7,6.870957]
[1746670978256,5.45594754,1832.9,1832.7,1.41453116]
[1746670978544,5.45594754,1832.9,1832.6,8.68917902]
[1746670979114,5.45594754,1832.9,1832.6,3.2324562]
[1746670979413,5.45594754,1832.9,1832.6,1.39708173]
[1746670979813,5.45594754,1832.9,1832.6,6.85379759]
[1746670981454,5.45594754,1832.9,1832.7,0.14115653]
[1746670981745,5.45594754,1832.9,1832.6,6.85379759]
[1746670981949,5.45573449,1833.0,1832.7,0.82653629]
[1746670982347,5.45540729,1833.1,1832.7,6.28286107]
[1746670982348,5.45543453,1833.1,1832.7,6.28286107]
[1746670982738,10.91092896,1833.1,1832.7,6.28286107]
[1746670982944,5.45555451,1833.0,1832.7,6.28286107]
[1746670983252,5.45555451,1833.0,1832.7,0.82653629]
[1746670984826,10.91134876,1833.0,1832.7,0.82653629]
[1746670985152,5.45570316,1833.0,1832.7,0.14115653]
[1746670985450,5.45570316,1833.0,1832.6,6.23060658]
[1746670985651,5.45570316,1833.0,1832.8,0.14115653]
[1746670985849,5.455407,1833.1,1832.6,6.28509868]
[1746670986053,10.9163,1833.4,1832.9,6.41378559]
[1746670986257,11.10791426,1833.3,1832.9,7.05516415]
[1746670986432,5.45495153,1833.2,1832.9,1.59933509]
[1746670986954,5.45495153,1833.2,1832.9,7.05514354]
[1746670987252,5.45495153,1833.2,1832.9,1.59933509]
[1746670987451,11.107646,1833.3,1832.9,7.05497781]
[1746670987655,16.5625624,1833.3,1832.9,7.05497781]
[1746670987821,5.45496098,1833.2,1832.9,1.59933509]
[1746670988150,5.4553096,1833.1,1832.9,1.59933509]
[1746670988453,5.4553096,1833.1,1832.9,0.95795653]
[1746670990365,5.45512398,1833.2,1832.9,0.95795653]
[1746670992566,5.45524607,1833.1,1832.9,0.95795653]
[1746670993366,5.45504539,1833.2,1832.9,0.95795653]
[1746670993866,5.45553737,1833.0,1832.9,0.14115653]
[1746670994164,5.45613269,1832.8,1832.7,0.8193]
[1746670994363,5.45594683,1832.9,1832.7,0.8193]
[1746670994548,5.45594683,1832.9,1832.7,0.95863461]
[1746670997959,5.45581584,1833.0,1832.7,0.95863461]
[1746670998166,5.45586173,1832.9,1832.7,0.95863461]
[1746670999773,5.45613269,1832.8,1832.7,0.13933461]
[1746670999971,5.45586173,1832.9,1832.7,0.13933461]
[1746671000153,5.45586173,1832.9,1832.6,0.7984]
[1746671000554,5.45586173,1832.9,1832.7,0.1429784]
[1746671000778,5.45571279,1833.0,1832.7,0.1429784]
[1746671001077,5.45504699,1833.2,1832.8,5.59896731]
[1746671001277,5.45504699,1833.2,1832.8,6.7875194]
[1746671001474,5.45504699,1833.2,1832.9,5.45582912]
[1746671001655,5.45504699,1833.2,1833.0,0.8063]
[1746671002068,5.45504699,1833.2,1833.1,0.1429784]
[1746671002981,5.653,1833.3,1833.1,0.1429784]
[1746671003147,11.10765999,1833.3,1833.1,0.1429784]
[1746671003348,5.45494217,1833.2,1833.1,0.1429784]
[1746671003650,11.10789045,1833.3,1833.1,0.1429784]
[1746671003847,5.653,1833.3,1833.1,5.59806113]
[1746671004075,5.653,1833.3,1833.2,0.55980611]
[1746671004276,15.57436842,1833.4,1833.1,0.1429784]
[1746671004476,15.57436842,1833.4,1833.2,0.14098303]
[1746671004866,15.57436842,1833.4,1833.0,11.71700031]
[1746671005072,15.57436842,1833.4,1833.1,0.14098303]
[1746671005270,10.12,1833.4,1833.1,5.596217]
[1746671005446,10.12,1833.4,1833.1,6.78200099]
[1746671006077,10.12,1833.4,1833.2,0.7658]
[1746671006582,10.12,1833.4,1833.3,0.13959524]
[1746671007781,5.45423096,1833.5,1833.3,0.13959524]
[1746671008793,5.45434711,1833.4,1833.3,0.13959524]
[1746671009863,5.45421568,1833.5,1833.3,0.13959524]
[1746671010194,4.8867,1833.8,1833.4,6.2495288]
[1746671010486,15.733,1833.9,1833.5,0.76073133]
[1746671010787,21.18593026,1833.9,1833.5,6.21463832]
[1746671012588,21.18593026,1833.9,1833.5,6.21454798]
[1746671012901,21.18593026,1833.9,1833.5,11.6684038]
[1746671013189,21.18593026,1833.9,1833.5,6.21454798]
[1746671015785,15.733,1833.9,1833.5,6.21454798]
[1746671016169,21.18589833,1833.9,1833.5,6.21454798]
[1746671016367,10.12,1834.1,1833.8,5.45298512]
[1746671016590,15.732,1834.2,1833.9,0.8277]
[1746671016889,15.732,1834.2,1833.9,6.41480661]
[1746671017588,5.612,1834.2,1834.0,5.45256223]
[1746671017797,5.612,1834.2,1833.9,6.41468471]
[1746671017990,5.612,1834.2,1834.1,0.13231012]
[1746671018196,5.612,1834.2,1833.9,12.3745329]
[1746671018369,5.612,1834.2,1834.1,0.13231012]
[1746671018575,5.612,1834.2,1834.0,5.45256069]
[1746671018770,16.37348788,1834.6,1834.2,6.27284849]
[1746671019080,19.11705379,1834.6,1834.2,0.8209]
[1746671019287,19.11705379,1834.6,1834.3,0.12996985]
[1746671019672,5.45118522,1834.5,1834.3,0.12996985]
[1746671020089,5.45137374,1834.4,1834.3,0.12996985]
[1746671020694,5.45137374,1834.4,1834.0,6.28114692]
[1746671020862,15.50148595,1834.6,1834.1,0.12996985]
[1746671021058,5.45196816,1834.2,1834.1,0.12996985]
[1746671021263,5.45244742,1834.1,1833.8,0.8287]
[1746671021494,5.45286002,1833.9,1833.5,0.8029]
[1746671021794,5.45303132,1833.9,1833.5,0.8029]
[1746671022090,5.45303132,1833.9,1833.5,7.42807751]
[1746671022595,6.22957139,1834.0,1833.6,5.45373705]
[1746671022793,5.45267139,1834.0,1833.6,5.45373705]
[1746671023794,5.45267139,1834.0,1833.5,7.42807751]
[1746671023795,8.52868609,1834.2,1833.5,7.42807751]
[1746671023978,5.45315184,1833.9,1833.5,1.9740356]
[1746671024174,5.45336351,1833.8,1833.5,1.9740356]
[1746671024400,5.45336351,1833.8,1833.5,0.8029]
[1746671025406,5.45317962,1833.8,1833.5,0.8029]
[1746671026164,6.28136956,1833.9,1833.5,6.25690024]
[1746671026380,5.45296956,1833.9,1833.5,6.25690024]
[1746671026576,5.45290259,1833.9,1833.6,0.11428401]
[1746671027198,5.45316642,1833.8,1833.6,0.11428401]
[1746671027609,5.45304524,1833.9,1833.6,0.11428401]
[1746671027920,10.9061522,1833.9,1833.6,0.11428401]
[1746671028109,5.45304524,1833.9,1833.6,0.11428401]
[1746671028310,5.45315883,1833.8,1833.6,0.11428401]
[1746671028601,10.9057,1834.3,1833.9,5.45274346]
[1746671028781,15.57182174,1834.3,1834.0,0.7984]
[1746671028981,15.57182174,1834.3,1834.0,0.9134642]
[1746671029972,5.45220502,1834.2,1834.0,0.1150642]
[1746671030206,6.23896541,1834.1,1834.0,0.1150642]
[1746671030378,9.25924899,1834.1,1833.5,0.8301]
[1746671030583,5.45326598,1833.8,1833.5,0.8301]
[1746671030904,5.45300133,1833.9,1833.6,0.11289719]
[1746671031421,12.09149654,1834.1,1833.6,0.11289719]
[1746671031617,5.45310734,1833.9,1833.6,0.11289719]
[1746671031783,10.90624101,1833.9,1833.6,0.11289719]
[1746671031980,5.45319779,1833.8,1833.6,0.11289719]
[1746671032289,5.45345476,1833.7,1833.6,0.11289719]
[1746671032501,5.45345476,1833.7,1833.3,9.23168559]
[1746671032702,5.45345476,1833.7,1833.4,0.11289719]
[1746671033280,6.24856733,1833.8,1833.4,5.56723056]
[1746671034207,5.45316733,1833.8,1833.4,5.56723056]
[1746671034610,5.45304756,1833.9,1833.6,0.8089]
[1746671034908,5.45315855,1833.8,1833.6,0.8089]
[1746671035121,11.21062061,1833.8,1833.4,0.8089]
[1746671035286,5.45392118,1833.6,1833.4,0.8089]
[1746671035612,5.45464462,1833.3,1833.2,0.8138]
[1746671035817,5.45464462,1833.3,1833.0,0.8138]
[1746671036114,6.28227886,1833.5,1833.0,6.26920683]
[1746671036281,5.45389352,1833.6,1833.2,5.45488902]
[1746671036480,0.30583722,1833.5,1833.3,0.8138]
[1746671036687,0.30583722,1833.5,1833.3,6.26829818]
[1746671037024,0.30583722,1833.5,1833.3,6.26823777]
[1746671037323,0.30583722,1833.5,1833.3,12.8949567]
[1746671037506,11.06251587,1833.7,1833.3,12.8949567]
[1746671037707,5.609,1833.7,1833.3,7.44071592]
[1746671037914,15.57338401,1833.8,1833.4,5.45424082]
[1746671038427,15.57338401,1833.8,1833.5,0.7891]
[1746671038621,0.30589495,1833.7,1833.5,0.7891]
[1746671039116,5.75956526,1833.7,1833.5,0.7891]
[1746671039300,7.58674969,1833.7,1833.3,0.813]
[1746671039501,10.12,1833.8,1833.3,0.813]
[1746671039722,10.12,1833.8,1833.3,6.26763498]
[1746671039723,5.45361736,1833.7,1833.3,6.26763498]
[1746671041393,1.83537447,1833.5,1832.7,0.825]
[1746671041720,1.83537447,1833.5,1833.0,0.825]
[1746671041721,5.76053474,1833.4,1833.0,0.825]
[1746671042297,0.30599218,1833.3,1833.0,1.50760591]
[1746671042497,0.30599218,1833.3,1833.0,6.96302146]
[1746671042905,0.30599218,1833.3,1833.1,5.45510056]
[1746671043102,0.30599218,1833.3,1833.2,6.25844217]
[1746671043412,5.45410614,1833.5,1833.2,0.8035]
[1746671043619,5.4541542,1833.5,1833.2,0.8035]
[1746671043927,5.4541542,1833.5,1833.2,6.2584332]
[1746671044157,10.12,1833.7,1833.5,6.2572677]
[1746671044331,6.27701626,1834.1,1833.7,0.8035]
[1746671044527,5.45241626,1834.1,1833.7,6.25695453]
[1746671044718,15.57214038,1834.2,1833.8,5.45311687]
[1746671045108,5.45281767,1834.0,1833.7,0.8035]
[1746671045308,5.45307415,1833.9,1833.7,0.8035]
[1746671045728,5.45357718,1833.7,1833.5,0.8035]
[1746671046632,5.45375218,1833.6,1833.3,0.8035]
[1746671046932,5.45434711,1833.4,1833.3,0.8035]
[1746671047149,5.45434711,1833.4,1833.1,0.8035]
[1746671047839,5.45409238,1833.5,1833.1,6.25853567]
[1746671048205,5.45409238,1833.5,1833.1,6.25862848]
[1746671048402,5.45409238,1833.5,1833.1,11.71366039]
[1746671048623,21.18262052,1833.7,1833.3,0.7857]
[1746671048839,21.18262052,1833.7,1833.3,6.24019929]
[1746671049002,15.729,1833.7,1833.3,6.29473951]
[1746671049209,15.729,1833.7,1833.4,5.45434142]
[1746671049533,21.18258289,1833.7,1833.3,6.24018325]
[1746671049718,21.18258289,1833.7,1833.3,7.40967977]
[1746671050449,10.12,1834.1,1833.8,5.4530807]
[1746671050638,5.4520721,1834.2,1833.8,5.4530496]
[1746671051123,0.30586608,1834.1,1833.8,5.4530496]
[1746671051324,0.30586608,1834.1,1834.0,0.831]
[1746671051938,5.45169089,1834.3,1834.0,0.831]
[1746671052128,5.45210415,1834.2,1833.8,5.45301814]
[1746671052335,5.45210415,1834.2,1833.8,6.28401814]
[1746671052635,5.45184092,1834.3,1833.9,5.45271045]
[1746671052815,5.75774839,1834.2,1833.9,1.17911615]
[1746671053013,11.2099942,1834.2,1833.8,0.831]
[1746671053214,11.20999882,1834.2,1833.8,0.831]
[1746671053415,5.45237931,1834.1,1833.8,0.831]
[1746671053638,0.7976,1834.2,1833.6,0.817]
[1746671053842,5.45287817,1833.9,1833.6,0.817]
[1746671054341,5.4525627,1834.0,1833.6,0.817]
[1746671054731,1.65139533,1834.0,1833.6,0.817]
[1746671054935,5.45298379,1833.9,1833.6,0.817]
[1746671055152,5.75877303,1833.9,1833.6,0.817]
[1746671056147,5.45298379,1833.9,1833.6,0.817]
[1746671056344,5.45298379,1833.9,1833.4,3.71670793]
[1746671056345,6.22100502,1833.8,1833.4,4.47807012]
[1746671056552,5.45330502,1833.8,1833.5,0.11844443]
[1746671056718,5.45362442,1833.7,1833.5,0.11844443]
[1746671057627,5.45375218,1833.6,1833.5,0.11844443]
[1746671057827,5.45410432,1833.5,1833.2,4.44047012]
[1746671058034,5.45410432,1833.5,1833.3,0.11844443]
[1746671058939,10.90841922,1833.5,1833.3,0.11844443]
[1746671059264,5.45410432,1833.5,1833.3,0.11844443]
[1746671059829,5.45410432,1833.5,1833.1,3.66217012]
[1746671060047,6.23352446,1833.6,1833.2,0.12312644]
[1746671060555,11.1066392,1833.7,1833.3,6.27643422]
[1746671060765,5.653,1833.7,1833.3,6.27635363]
[1746671061268,5.653,1833.7,1833.4,5.5773626]
[1746671061447,15.57305725,1833.9,1833.5,5.45403451]
[1746671061652,10.12,1833.9,1833.5,6.20673451]
[1746671061830,10.12,1833.9,1833.6,0.12243274]
[1746671062030,15.57288889,1833.9,1833.6,0.12243274]
[1746671062336,0.30589434,1833.8,1833.6,5.57615289]
[1746671062974,10.12,1833.9,1833.6,5.57615289]
[1746671063475,15.57289428,1833.9,1833.6,0.12243274]
[1746671064121,5.45332555,1833.8,1833.6,0.12243274]
[1746671064963,8.34584753,1833.8,1833.6,0.12243274]
[1746671065130,5.45345476,1833.7,1833.6,0.12243274]
[1746671065435,5.45345476,1833.7,1833.3,15.35915612]
[1746671065620,0.30586666,1833.7,1833.4,5.45416977]
[1746671065824,0.30586666,1833.7,1833.5,0.12243274]
[1746671066258,6.24324354,1833.8,1833.5,0.12243274]
[1746671066441,8.42486871,1833.8,1833.5,0.12243274]
[1746671067651,5.45375218,1833.6,1833.5,0.12243274]
[1746671067947,5.75967739,1833.6,1833.3,4.45027012]
[1746671068151,0.30592521,1833.6,1833.4,0.12165239]
[1746671068556,0.7866,1833.5,1833.4,0.12165239]
[1746671068769,1.09252521,1833.5,1833.4,0.12165239]
[1746671069072,6.54657484,1833.5,1833.4,0.12165239]
[1746671069280,0.30592521,1833.5,1833.4,0.12165239]
[1746671070067,5.75997484,1833.5,1833.4,0.12165239]
[1746671070859,0.30592521,1833.5,1833.4,0.12165239]
[1746671071065,0.30591222,1833.5,1833.4,0.12165239]
[1746671071940,0.30591222,1833.5,1833.2,5.45490978]
[1746671072239,0.30591222,1833.5,1833.3,0.12191256]
[1746671072579,5.45391218,1833.6,1833.3,0.12191256]
[1746671074270,0.30596962,1833.5,1833.3,0.12191256]
[1746671075386,5.45391218,1833.6,1833.3,0.12191256]
[1746671075387,5.45398081,1833.6,1833.3,0.12191256]